bitfinex-derivatives/quotes_BTCF0:USTF0_20241116
["timestamp","ask_amount","ask_price","bid_price","bid_amount"]
[1731776901068,0.055054,90788.0,90787.0,0.76059585]
[1731776901260,0.39107935,90791.0,90787.0,0.37749529]
[1731776901456,0.39047934,90791.0,90788.0,0.32797413]
[1731776901661,0.055053,90789.0,90788.0,0.38302713]
[1731776902569,0.055053,90789.0,90788.0,0.055053]
[1731776902772,0.055053,90789.0,90788.0,0.38302713]
[1731776902957,0.055053,90789.0,90788.0,0.43220999]
[1731776903365,0.055053,90789.0,90788.0,0.76006865]
[1731776903560,0.39107935,90791.0,90790.0,0.055052]
[1731776903764,0.37028,90801.0,90798.0,0.055048]
[1731776903765,0.537127,90799.0,90798.0,0.055048]
[1731776904967,0.415847,90799.0,90798.0,0.055048]
[1731776906072,0.02904605,90799.0,90798.0,0.055048]
[1731776906372,0.055045,90802.0,90800.0,0.055046]
[1731776906573,0.10476396,90811.0,90794.0,0.32785311]
[1731776906870,0.055043,90805.0,90804.0,0.055044]
[1731776907476,0.03074098,90809.0,90808.0,0.055041]
[1731776907663,0.00165262,90809.0,90808.0,0.055041]
[1731776907865,0.3608,90829.0,90808.0,0.055041]
[1731776907866,0.055029,90829.0,90820.0,0.055034]
[1731776908074,0.3608,90840.0,90820.0,0.055034]
[1731776908075,0.00056001,90821.0,90820.0,0.055034]
[1731776908373,8.719e-05,90822.0,90821.0,0.1101267]
[1731776908571,8.719e-05,90822.0,90820.0,0.055034]
[1731776908873,8.719e-05,90822.0,90821.0,0.11890729]
[1731776912762,8.719e-05,90822.0,90821.0,0.44922729]
[1731776912965,8.719e-05,90822.0,90821.0,0.11890729]
[1731776914769,0.00056001,90835.0,90822.0,0.33040446]
[1731776915071,0.02836506,90835.0,90834.0,0.055026]
[1731776915264,0.3608,90843.0,90834.0,0.055026]
[1731776915265,0.055024,90837.0,90834.0,0.055026]
[1731776915478,0.3608,90843.0,90823.0,0.11010608]
[1731776915672,0.055025,90836.0,90823.0,0.3982]
[1731776915977,0.055025,90836.0,90832.0,0.055027]
[1731776916566,0.055025,90836.0,90833.0,0.11008911]
[1731776917066,0.415821,90843.0,90836.0,0.055024]
[1731776917273,0.055022,90840.0,90836.0,0.055024]
[1731776917663,0.055022,90840.0,90837.0,0.11009093]
[1731776918562,0.3608,90843.0,90839.0,0.055022]
[1731776918969,0.12124,90845.0,90839.0,0.055022]
[1731776919373,0.055021,90842.0,90839.0,0.055022]
[1731776919565,0.055021,90842.0,90840.0,0.11008548]
[1731776920867,0.055021,90842.0,90841.0,0.0088]
[1731776922298,0.15978496,90842.0,90841.0,0.0088]
[1731776922667,0.49002496,90842.0,90841.0,0.00120707]
[1731776922867,0.49002496,90842.0,90841.0,7e-08]
[1731776923277,0.49002496,90842.0,90841.0,0.06569007]
[1731776923763,0.170181,90842.0,90841.0,0.06569007]
[1731776926269,0.500421,90842.0,90841.0,0.06569007]
[1731776927472,0.170181,90842.0,90841.0,0.06569007]
[1731776927870,0.500421,90842.0,90841.0,0.06569007]
[1731776928484,0.500421,90842.0,90822.0,0.00518446]
[1731776928680,0.415832,90823.0,90822.0,8.446e-05]
[1731776931980,0.44429049,90823.0,90822.0,8.446e-05]
[1731776934291,0.44429049,90823.0,90822.0,4.6e-07]
[1731776935680,0.44429049,90823.0,90821.0,0.0088]
[1731776935879,0.44429049,90823.0,90821.0,4.6e-07]
[1731776935880,0.055033,90822.0,90821.0,4.6e-07]
[1731776937479,0.4448505,90823.0,90820.0,4.6e-07]
[1731776937480,0.055034,90821.0,90820.0,4.6e-07]
[1731776937802,0.15979796,90821.0,90820.0,4.6e-07]
[1731776941001,0.055034,90820.0,90819.0,4.6e-07]
[1731776942689,0.776634,90820.0,90819.0,4.6e-07]
[1731776943288,0.055035,90819.0,90818.0,2.28e-06]
[1731776945393,0.055035,90818.0,90817.0,2.8e-07]
[1731776947904,0.055035,90818.0,90803.0,0.26088766]
[1731776948089,0.415844,90804.0,90803.0,0.26088766]
[1731776948291,0.055047,90799.0,90798.0,0.43714612]
[1731776948594,0.055047,90799.0,90798.0,0.32703519]
[1731776948802,0.055048,90798.0,90797.0,0.38208319]
[1731776948996,0.055048,90798.0,90797.0,0.74536748]
[1731776949201,0.055048,90798.0,90797.0,0.700645]
[1731776949398,0.055048,90798.0,90797.0,0.48374378]
[1731776949602,0.055048,90798.0,90797.0,0.47341826]
[1731776950291,0.055048,90798.0,90797.0,0.32817407]
[1731776950491,0.055048,90797.0,90796.0,0.00881]
[1731776951506,0.055048,90797.0,90796.0,0.27156508]
[1731776952089,0.055048,90797.0,90796.0,0.00881]
[1731776952898,0.08415351,90797.0,90796.0,0.00881]
[1731776957802,0.08415351,90797.0,90791.0,0.00165197]
[1731776957803,0.055051,90792.0,90791.0,0.00165197]
[1731776958007,0.62953496,90792.0,90791.0,0.00165197]
[1731776958202,0.57448396,90792.0,90788.0,0.26275508]
[1731776958415,0.055052,90790.0,90789.0,0.26281411]
[1731776959301,0.055052,90790.0,90782.0,0.32832265]
[1731776959609,0.407047,90783.0,90782.0,0.32832265]
[1731776959823,0.407047,90783.0,90782.0,0.69285978]
[1731776960004,0.407047,90783.0,90782.0,0.36453713]
[1731776960610,0.407047,90783.0,90782.0,0.36450505]
[1731776962904,0.407047,90783.0,90782.0,0.6928728]
[1731776963408,0.407047,90783.0,90782.0,0.36450505]
[1731776964511,0.43613854,90783.0,90782.0,0.36450505]
[1731776965105,0.44494854,90783.0,90782.0,0.36450505]
[1731776970011,0.44494854,90783.0,90782.0,0.37049564]
[1731776970806,0.51376721,90783.0,90782.0,0.37049564]
[1731776973313,0.51376721,90783.0,90782.0,0.38082345]
[1731776973518,0.54794854,90783.0,90782.0,0.54603383]
[1731776973915,0.49289154,90783.0,90782.0,0.54603383]
[1731776974128,0.055055,90786.0,90782.0,0.54603383]
[1731776974129,0.055055,90786.0,90782.0,0.9330019]
[1731776974312,0.055055,90786.0,90785.0,0.055055]
[1731776974615,0.055052,90792.0,90791.0,0.055052]
[1731776974842,0.055052,90792.0,90791.0,0.42554764]
[1731776975022,0.103,90794.0,90791.0,0.37049564]
[1731776975210,0.103,90794.0,90793.0,0.055051]
[1731776975409,0.103,90794.0,90793.0,0.42554664]
[1731776975614,0.103,90794.0,90793.0,0.81980246]
[1731776975810,0.103,90794.0,90793.0,0.42554664]
[1731776976005,0.103,90794.0,90793.0,0.53568668]
[1731776976619,0.103,90794.0,90793.0,0.54601226]
[1731776976815,0.103,90794.0,90793.0,0.53568668]
[1731776977716,0.103,90794.0,90793.0,0.54601248]
[1731776978019,0.15805,90794.0,90793.0,0.53568668]
[1731776978921,0.15805,90794.0,90793.0,0.54653459]
[1731776979919,0.15805,90794.0,90793.0,0.98882394]
[1731776980511,0.15805,90794.0,90793.0,0.54653459]
[1731776981019,0.15805,90794.0,90793.0,0.98910588]
[1731776981408,0.39720598,90800.0,90793.0,0.93426546]
[1731776981609,0.3608,90800.0,90799.0,0.055047]
[1731776981814,0.3608,90800.0,90799.0,0.43639055]
[1731776982014,0.103,90808.0,90800.0,0.055046]
[1731776982216,0.103,90808.0,90807.0,0.055042]
[1731776982417,0.103,90808.0,90807.0,0.43638555]
[1731776982920,0.00165235,90811.0,90810.0,0.05504]
[1731776983126,0.00165235,90811.0,90810.0,0.43638355]
[1731776983507,0.36245235,90811.0,90810.0,0.54650661]
[1731776983710,0.36245235,90811.0,90810.0,0.93982439]
[1731776983920,0.36245235,90811.0,90810.0,0.5354745]
[1731776984316,0.41749235,90811.0,90810.0,0.5354745]
[1731776984837,0.55779837,90811.0,90810.0,0.37031144]
[1731776986626,0.55779837,90811.0,90810.0,0.42535144]
[1731776986828,0.45301154,90811.0,90810.0,0.42535144]
[1731776987514,0.45301154,90811.0,90810.0,0.42477493]
[1731776989120,0.45301154,90811.0,90810.0,0.53489435]
[1731776989325,0.03717154,90811.0,90810.0,0.53489435]
[1731776990030,0.09708,90814.0,90813.0,0.055038]
[1731776990324,0.09708,90814.0,90813.0,0.43509655]
[1731776990527,0.13346487,90814.0,90813.0,0.42477293]
[1731776990826,0.03638487,90814.0,90813.0,0.8626733]
[1731776991022,0.45788,90821.0,90813.0,0.47985435]
[1731776991228,0.055038,90815.0,90814.0,0.42477293]
[1731776991825,0.055038,90815.0,90814.0,0.53488871]
[1731776992030,0.15982483,90815.0,90814.0,0.47985071]
[1731776992229,0.10478683,90815.0,90812.0,0.32771248]
[1731776992535,0.05504,90811.0,90810.0,0.0088]
[1731776993117,0.05504,90811.0,90810.0,0.11891942]
[1731776993626,0.05504,90811.0,90810.0,0.0088]
[1731776994930,0.05504,90811.0,90810.0,0.06384]
[1731776995315,0.05504,90811.0,90810.0,0.43167309]
[1731776995515,0.05504,90811.0,90810.0,0.39158815]
[1731776995719,0.05504,90811.0,90810.0,0.50170757]
[1731776996119,0.05504,90811.0,90810.0,0.54158168]
[1731776998026,0.05504,90811.0,90810.0,0.48654168]
[1731776998239,0.05504,90811.0,90810.0,0.44680163]
[1731776998627,0.05504,90811.0,90810.0,0.44679688]
[1731776998828,0.09130607,90811.0,90810.0,0.33667746]
[1731776999033,0.5568929,90811.0,90810.0,0.0088]
[1731776999625,0.5568929,90811.0,90810.0,0.27126103]
[1731776999834,0.5568929,90811.0,90810.0,0.0088]
[1731777001232,0.5568929,90811.0,90810.0,0.00094423]
[1731777001533,0.5568929,90811.0,90810.0,0.1979459]
[1731777001736,0.5568929,90811.0,90810.0,0.00094423]
[1731777003325,0.5568929,90811.0,90810.0,0.1979459]
[1731777003724,0.5568929,90811.0,90810.0,0.00094423]
[1731777006831,0.6539729,90811.0,90810.0,0.00094423]
[1731777007836,0.5568929,90811.0,90810.0,0.00094423]
[1731777008039,0.6539729,90811.0,90810.0,0.00094423]
[1731777008726,0.6539729,90811.0,90808.0,0.25935102]
[1731777008930,0.6539729,90811.0,90801.0,0.32787746]
[1731777008931,0.055045,90802.0,90801.0,0.32787746]
[1731777009130,0.055049,90796.0,90788.0,0.39402401]
[1731777009435,0.055049,90796.0,90785.0,0.39423694]
[1731777009436,0.055055,90786.0,90785.0,0.39423694]
[1731777009624,0.15984183,90786.0,90785.0,0.35526311]
[1731777010025,0.10478683,90786.0,90778.0,0.00068]
[1731777010230,0.055059,90779.0,90778.0,0.00068]
[1731777010430,0.055059,90779.0,90778.0,0.35782156]
[1731777010631,0.055059,90779.0,90778.0,0.4679713]
[1731777010928,0.055059,90779.0,90778.0,0.4672913]
[1731777011434,0.415859,90779.0,90778.0,0.4569637]
[1731777011636,0.415859,90779.0,90778.0,0.11014974]
[1731777011838,0.45119199,90779.0,90778.0,0.11014974]
[1731777013142,0.55597882,90779.0,90778.0,0.10357926]
[1731777013440,0.55597882,90779.0,90777.0,0.20570921]
[1731777013643,0.55597882,90779.0,90777.0,0.00881]
[1731777019246,0.10478683,90778.0,90777.0,0.00881]
[1731777019658,0.055069,90763.0,90760.0,0.19689921]
[1731777019956,0.055071,90759.0,90757.0,0.19689921]
[1731777020251,0.055072,90757.0,90755.0,0.19689921]
[1731777020545,0.10478683,90758.0,90752.0,0.19689921]
[1731777020852,0.055075,90753.0,90752.0,0.19689921]
[1731777021148,0.055075,90753.0,90750.0,0.055077]
[1731777021348,0.055075,90753.0,90751.0,0.00881]
[1731777021649,0.055075,90753.0,90752.0,0.11018676]
[1731777021839,0.055075,90753.0,90751.0,0.00881]
[1731777022047,0.00132353,90752.0,90751.0,0.00881]
[1731777022642,0.00132353,90752.0,90751.0,0.1189998]
[1731777026050,0.00132353,90752.0,90751.0,0.31558775]
[1731777026252,0.00132353,90752.0,90751.0,0.1189998]
[1731777027245,0.00132353,90752.0,90751.0,0.00881]
[1731777027760,0.10611036,90752.0,90751.0,0.00881]
[1731777027945,0.21089719,90752.0,90751.0,0.00881]
[1731777028443,0.055084,90738.0,90737.0,0.00165312]
[1731777028648,0.508004,90738.0,90737.0,0.00165312]
[1731777029050,0.50932753,90738.0,90737.0,0.00165312]
[1731777034358,0.50932753,90738.0,90736.0,0.00289]
[1731777034359,0.54487265,90738.0,90736.0,0.00289]
[1731777034547,0.36212353,90738.0,90737.0,0.11020801]
[1731777035649,0.00132353,90738.0,90737.0,0.11020801]
[1731777035951,0.055065,90769.0,90737.0,0.11020801]
[1731777035952,0.09216,90764.0,90753.0,0.055075]
[1731777036151,0.09216,90764.0,90753.0,0.453275]
[1731777036349,0.04499927,90760.0,90753.0,0.783835]
[1731777036556,0.10007027,90760.0,90753.0,0.56348301]
[1731777036761,0.055074,90755.0,90753.0,0.56348301]
[1731777036966,0.055074,90755.0,90753.0,0.50840801]
[1731777037265,0.46558683,90754.0,90746.0,0.3982]
[1731777037455,0.15986483,90747.0,90746.0,0.3982]
[1731777037861,0.15986483,90747.0,90746.0,0.50838858]
[1731777038062,0.055078,90747.0,90746.0,0.50838858]
[1731777038361,0.055078,90747.0,90746.0,0.5187204]
[1731777039753,0.055078,90747.0,90746.0,0.71551407]
[1731777039947,0.055078,90747.0,90746.0,0.5187204]
[1731777040155,0.055078,90747.0,90746.0,0.71551799]
[1731777040461,0.055078,90747.0,90746.0,0.1205204]
[1731777041555,0.055078,90747.0,90746.0,0.11018858]
[1731777042454,0.09993113,90747.0,90746.0,0.11018858]
[1731777043063,0.04485313,90747.0,90746.0,0.11018858]
[1731777043263,0.3608,90754.0,90746.0,0.11018858]
[1731777043450,0.3608,90754.0,90753.0,0.055075]
[1731777043855,0.3608,90754.0,90753.0,0.16527208]
[1731777044960,0.3608,90754.0,90753.0,0.89403208]
[1731777045165,0.3608,90754.0,90753.0,1.24402943]
[1731777045357,0.3608,90754.0,90753.0,0.91620219]
[1731777045960,0.10037079,90764.0,90761.0,0.05507]
[1731777046355,0.10037079,90764.0,90762.0,0.06539888]
[1731777046559,0.10037079,90764.0,90763.0,0.01032988]
[1731777047163,0.10037079,90764.0,90763.0,0.12050632]
[1731777047764,0.10037079,90764.0,90763.0,0.11017644]
[1731777049860,0.10037079,90764.0,90763.0,0.16524544]
[1731777050264,0.10037079,90764.0,90763.0,0.055069]
[1731777050465,0.10037079,90764.0,90763.0,0.16524544]
[1731777051766,0.10037079,90764.0,90763.0,0.17557471]
[1731777054069,0.04530179,90764.0,90763.0,0.17557471]
[1731777054270,0.055065,90769.0,90763.0,0.12050571]
[1731777054466,0.055065,90769.0,90768.0,0.055066]
[1731777054970,0.055065,90769.0,90768.0,0.06539527]
[1731777055270,0.055065,90769.0,90768.0,0.17557171]
[1731777055656,0.055065,90769.0,90768.0,0.12050571]
[1731777055859,0.09908405,90769.0,90768.0,0.01032927]
[1731777056070,0.09908405,90769.0,90768.0,0.19680616]
[1731777056272,0.09908405,90769.0,90765.0,0.19680616]
[1731777056273,0.055066,90767.0,90765.0,0.19680616]
[1731777056460,0.055068,90764.0,90763.0,0.19680616]
[1731777056659,0.12390173,90764.0,90763.0,0.01033017]
[1731777057276,0.12390173,90764.0,90763.0,0.12050661]
[1731777058269,0.055068,90764.0,90763.0,0.12050661]
[1731777058464,0.04401905,90769.0,90763.0,0.12050661]
[1731777058669,0.055065,90770.0,90768.0,0.12389973]
[1731777058963,0.055065,90770.0,90769.0,0.01033017]
[1731777059383,0.055065,90770.0,90769.0,0.12049994]
[1731777059762,0.055065,90770.0,90769.0,0.12334994]
[1731777061073,0.055065,90770.0,90769.0,0.11301977]
[1731777063667,0.055065,90770.0,90769.0,0.00285]
[1731777063873,0.055065,90770.0,90769.0,0.21024456]
[1731777064076,0.055065,90770.0,90769.0,0.0131797]
[1731777064574,0.04372449,90772.0,90769.0,0.12334886]
[1731777064772,0.09878749,90772.0,90770.0,0.39357936]
[1731777064966,0.09878749,90772.0,90770.0,0.40911521]
[1731777065478,0.09878749,90772.0,90770.0,0.51928316]
[1731777066161,0.05671719,90771.0,90770.0,0.49387436]
[1731777066474,0.05671719,90771.0,90770.0,0.83599637]
[1731777066672,0.05671719,90771.0,90770.0,0.83597881]
[1731777066977,0.05671719,90771.0,90770.0,0.83595753]
[1731777067273,0.05671719,90771.0,90770.0,0.83700121]
[1731777067469,0.05671719,90771.0,90770.0,0.83699005]
[1731777067668,0.05671719,90771.0,90770.0,0.50837806]
[1731777068076,0.02304196,90780.0,90779.0,0.055059]
[1731777068077,0.001,90780.0,90779.0,0.055059]
[1731777068266,0.3608,90800.0,90779.0,0.055059]
[1731777068267,0.055049,90797.0,90786.0,0.055055]
[1731777068469,0.055048,90797.0,90786.0,0.40884074]
[1731777068670,0.04461009,90794.0,90786.0,0.51900869]
[1731777069081,0.055054,90788.0,90786.0,0.51900869]
[1731777069379,0.055054,90788.0,90786.0,0.46395369]
[1731777069584,0.055054,90788.0,90786.0,0.01032876]
[1731777069886,0.08868525,90787.0,90786.0,0.01032876]
[1731777070375,0.00012525,90787.0,90786.0,0.01032876]
[1731777070675,0.00012525,90787.0,90786.0,0.44870614]
[1731777070868,0.00012525,90787.0,90786.0,0.46233312]
[1731777071068,0.00012525,90787.0,90786.0,0.78019649]
[1731777071283,0.00012525,90787.0,90786.0,0.11014853]
[1731777071478,0.00012525,90787.0,90786.0,0.43834066]
[1731777072477,0.00012525,90787.0,90786.0,0.45158366]
[1731777072983,0.00012525,90787.0,90786.0,0.8601099]
[1731777074478,0.00012525,90787.0,90786.0,0.9151649]
[1731777075480,0.00012525,90787.0,90786.0,0.90386996]
[1731777075986,0.05517925,90787.0,90786.0,0.3982]
[1731777076376,0.055055,90785.0,90784.0,0.19692959]
[1731777076671,0.00012525,90787.0,90782.0,0.19693392]
[1731777076672,0.055057,90783.0,90782.0,0.19693392]
[1731777076873,0.055057,90783.0,90769.0,0.00285]
[1731777076874,0.055058,90780.0,90779.0,0.19693392]
[1731777077073,0.143618,90780.0,90770.0,0.11014853]
[1731777077271,0.143618,90780.0,90769.0,0.33091286]
[1731777077272,0.143618,90780.0,90779.0,0.19698397]
[1731777077582,0.143618,90780.0,90779.0,0.19700888]
[1731777077787,0.055059,90779.0,90778.0,0.19700888]
[1731777078381,0.055059,90779.0,90778.0,0.19704463]
[1731777078774,0.055061,90775.0,90774.0,0.26263814]
[1731777078978,0.415861,90775.0,90774.0,0.01032906]
[1731777079979,0.45976666,90775.0,90774.0,0.27305353]
[1731777080183,0.45976666,90775.0,90769.0,0.00285]
[1731777080379,0.15993298,90770.0,90769.0,0.00285]
[1731777080587,0.15993298,90770.0,90769.0,0.01318026]
[1731777081083,0.15993298,90770.0,90769.0,0.21024729]
[1731777081384,0.15993298,90770.0,90769.0,0.19991703]
[1731777082870,0.15993298,90770.0,90769.0,0.00285]
[1731777083070,0.49045298,90770.0,90769.0,0.00285]
[1731777083485,0.49045298,90770.0,90769.0,0.00052648]
[1731777084981,1.21205298,90770.0,90769.0,0.00052648]
[1731777085584,1.21205298,90770.0,90769.0,4.8e-07]
[1731777085891,0.055075,90752.0,90751.0,0.0051]
[1731777086185,0.055075,90752.0,90749.0,0.19874132]
[1731777086186,1.14072,90752.0,90749.0,0.19873851]
[1731777086384,0.055077,90750.0,90749.0,0.0016529]
[1731777086778,0.385677,90750.0,90749.0,0.0016529]
[1731777087290,0.055077,90750.0,90749.0,0.0016529]
[1731777089590,0.055077,90750.0,90738.0,0.19685717]
[1731777089591,0.055078,90748.0,90738.0,0.19685717]
[1731777089783,0.05508,90744.0,90738.0,0.31780847]
[1731777089984,0.055082,90741.0,90738.0,0.31780847]
[1731777090180,0.055083,90740.0,90738.0,0.31780847]
[1731777090576,0.3608,90744.0,90739.0,0.11020376]
[1731777090782,0.3608,90744.0,90742.0,0.055081]
[1731777090994,0.40493779,90744.0,90742.0,0.055081]
[1731777091194,0.46001879,90744.0,90742.0,0.055081]
[1731777091378,0.46001779,90744.0,90743.0,0.30687864]
[1731777091783,0.46001779,90744.0,90743.0,0.19667731]
[1731777091984,0.46001779,90744.0,90743.0,0.11020133]
[1731777092377,0.46001779,90744.0,90743.0,0.19667731]
[1731777092781,0.46001779,90744.0,90742.0,0.30687804]
[1731777092997,0.46001779,90744.0,90742.0,0.19667731]
[1731777093177,0.46001779,90744.0,90743.0,0.30687804]
[1731777093384,0.56488677,90744.0,90743.0,0.11020073]
[1731777093584,0.055084,90738.0,90737.0,0.26272447]
[1731777093780,0.50980677,90744.0,90735.0,0.26272447]
[1731777093990,0.055085,90736.0,90734.0,0.26272447]
[1731777094295,0.055087,90733.0,90732.0,0.055087]
[1731777094881,0.055087,90733.0,90732.0,0.16529258]
[1731777095901,0.055087,90733.0,90732.0,0.17562554]
[1731777096195,0.055087,90733.0,90732.0,0.16529258]
[1731777097399,0.09999531,90733.0,90732.0,0.16529258]
[1731777099676,0.055087,90733.0,90732.0,0.16529258]
[1731777100586,0.055087,90733.0,90732.0,0.1756256]
[1731777100789,0.055087,90733.0,90732.0,0.17562548]
[1731777100986,0.08856,90735.0,90734.0,0.055086]
[1731777101791,0.08856,90735.0,90734.0,0.36193315]
[1731777101989,0.40492833,90736.0,90735.0,0.055086]
[1731777102202,0.40436832,90736.0,90735.0,0.055086]
[1731777102494,0.45945332,90736.0,90735.0,0.055086]
[1731777102692,0.45945332,90736.0,90735.0,0.16529766]
[1731777103990,0.45945332,90736.0,90735.0,0.11021166]
[1731777104301,0.40436832,90736.0,90730.0,0.31781347]
[1731777104594,0.055087,90733.0,90731.0,0.01033339]
[1731777104793,0.055088,90731.0,90730.0,0.19691771]
[1731777104990,0.055089,90730.0,90728.0,0.19691771]
[1731777105183,0.05509,90728.0,90727.0,0.19691771]
[1731777105386,0.10486898,90729.0,90724.0,0.19706369]
[1731777105589,0.055092,90724.0,90723.0,0.11021652]
[1731777105785,0.10486898,90725.0,90723.0,0.01033472]
[1731777106001,0.055094,90722.0,90721.0,0.19706369]
[1731777106189,0.055094,90722.0,90721.0,0.01033483]
[1731777106586,0.055094,90722.0,90721.0,0.31767149]
[1731777107101,0.055094,90722.0,90721.0,0.31767049]
[1731777107302,0.055094,90722.0,90721.0,0.12055924]
[1731777107492,0.055094,90722.0,90721.0,0.31769877]
[1731777108195,0.055094,90722.0,90721.0,0.12055924]
[1731777108701,0.10061422,90722.0,90721.0,0.12055924]
[1731777110795,0.10061422,90722.0,90721.0,0.01033483]
[1731777111900,0.10061422,90722.0,90721.0,0.20771483]
[1731777112399,0.46141422,90722.0,90721.0,0.20771483]
[1731777112596,0.46141422,90722.0,90721.0,0.01033483]
[1731777112796,0.5662832,90722.0,90721.0,0.01033483]
[1731777113004,0.8969632,90722.0,90721.0,0.01033483]
[1731777113190,0.055097,90717.0,90716.0,0.00165326]
[1731777113389,0.504417,90717.0,90716.0,0.00165326]
[1731777113797,0.504417,90717.0,90716.0,0.01199021]
[1731777114889,0.504417,90717.0,90716.0,0.00165326]
[1731777120198,0.504457,90717.0,90716.0,0.01198944]
[1731777120392,0.504457,90717.0,90716.0,0.00165326]
[1731777120598,0.415897,90717.0,90716.0,0.00165326]
[1731777120798,0.44936,90717.0,90716.0,0.17566626]
[1731777121097,0.3608,90717.0,90716.0,0.37304626]
[1731777121307,0.3608,90717.0,90716.0,0.17566626]
[1731777121700,0.415897,90717.0,90716.0,0.17566626]
[1731777122692,0.3608,90717.0,90716.0,0.17566626]
[1731777123200,0.08856,90719.0,90718.0,0.055096]
[1731777123400,0.00011543,90721.0,90720.0,0.055095]
[1731777123604,0.00011543,90721.0,90720.0,0.06543074]
[1731777123809,0.00011543,90721.0,90720.0,0.17566426]
[1731777127310,0.00011543,90721.0,90720.0,0.50372712]
[1731777127704,0.3608,90730.0,90729.0,0.055089]
[1731777128012,0.3608,90730.0,90729.0,0.06542474]
[1731777128516,0.055086,90736.0,90735.0,0.055086]
[1731777128703,0.44996001,90739.0,90738.0,0.055084]
[1731777128900,0.3608,90739.0,90738.0,0.31794436]
[1731777129204,0.40609303,90739.0,90738.0,0.06541676]
[1731777129806,0.46117603,90739.0,90738.0,0.06541676]
[1731777133337,0.46117603,90739.0,90738.0,0.32819923]
[1731777133520,0.10037603,90739.0,90738.0,0.32819923]
[1731777133922,0.10037603,90739.0,90738.0,0.06541676]
[1731777134623,0.10037603,90739.0,90738.0,0.32817749]
[1731777135129,0.10037603,90739.0,90738.0,0.06541676]
[1731777135328,0.3608,90743.0,90742.0,0.055081]
[1731777135537,0.4042846,90743.0,90742.0,0.06541376]
[1731777136030,0.4042846,90743.0,90742.0,0.17562056]
[1731777136430,0.3608,90743.0,90742.0,0.17562056]
[1731777136732,0.19338898,90749.0,90748.0,0.055078]
[1731777136935,0.19338898,90749.0,90748.0,0.06541076]
[1731777137430,0.08852,90749.0,90748.0,0.2623648]
[1731777137729,0.04537737,90753.0,90751.0,0.055076]
[1731777138141,0.04537737,90753.0,90751.0,0.06540622]
[1731777138323,0.0001335,90754.0,90751.0,0.17560087]
[1731777138524,0.0001335,90754.0,90751.0,0.12052487]
[1731777138832,0.3608,90764.0,90763.0,0.055069]
[1731777138833,0.40570084,90764.0,90763.0,0.055069]
[1731777139042,0.05671178,90780.0,90771.0,0.055064]
[1731777139043,0.055064,90772.0,90771.0,0.055064]
[1731777139335,0.143501,90776.0,90775.0,0.055061]
[1731777139535,0.09009278,90780.0,90775.0,0.19671567]
[1731777139740,0.055061,90779.0,90778.0,0.055059]
[1731777140732,0.00165278,90780.0,90778.0,0.055059]
[1731777142050,0.00165278,90780.0,90779.0,0.11027562]
[1731777142426,0.00165278,90780.0,90779.0,0.00011799]
[1731777143734,0.00165278,90780.0,90779.0,0.11027501]
[1731777145134,0.10652176,90780.0,90779.0,0.11027501]
[1731777145930,0.10652176,90780.0,90779.0,0.00011799]
[1731777147028,0.00165278,90780.0,90779.0,0.11027501]
[1731777149433,0.00165278,90780.0,90779.0,0.12060229]
[1731777149634,0.00165278,90780.0,90779.0,0.17566129]
[1731777150636,0.00165278,90780.0,90779.0,0.16533401]
[1731777150941,0.00165278,90780.0,90779.0,0.1756612]
[1731777152437,0.00165278,90780.0,90779.0,0.16533401]
[1731777153235,0.00165278,90780.0,90779.0,0.17566107]
[1731777153538,0.00165278,90780.0,90779.0,0.16533401]
[1731777154227,0.00165278,90780.0,90779.0,0.17566097]
[1731777155340,0.00165278,90780.0,90779.0,0.43796808]
[1731777156134,0.00165278,90780.0,90779.0,0.17566097]
[1731777156440,0.00165278,90780.0,90779.0,0.43796808]
[1731777156640,8.33e-05,90787.0,90786.0,0.055055]
[1731777156834,8.33e-05,90787.0,90786.0,0.06538196]
[1731777157235,8.33e-05,90787.0,90786.0,0.17553898]
[1731777158430,8.33e-05,90787.0,90786.0,0.37184423]
[1731777158630,8.33e-05,90787.0,90786.0,0.17553898]
[1731777159441,8.33e-05,90787.0,90786.0,0.37184423]
[1731777159627,8.33e-05,90787.0,90786.0,0.17553898]
[1731777161132,8.33e-05,90787.0,90786.0,0.37192561]
[1731777161334,8.33e-05,90787.0,90786.0,0.37197841]
[1731777161535,8.33e-05,90787.0,90786.0,0.17553898]
[1731777162841,8.33e-05,90787.0,90786.0,0.22106446]
[1731777164236,8.33e-05,90787.0,90786.0,0.17553898]
[1731777164438,0.0220304,90796.0,90786.0,0.12048398]
[1731777164638,0.055049,90795.0,90794.0,0.05505]
[1731777164842,0.055049,90795.0,90794.0,0.06537696]
[1731777167642,0.055049,90795.0,90794.0,0.32822118]
[1731777168042,0.055049,90795.0,90794.0,0.06537696]
[1731777170647,0.055049,90795.0,90794.0,0.01032696]
[1731777170842,0.055049,90795.0,90794.0,0.06537696]
[1731777172337,0.055049,90795.0,90794.0,0.01032696]
[1731777173838,0.055049,90795.0,90794.0,0.27359481]
[1731777174149,0.055049,90795.0,90794.0,0.01032696]
[1731777174336,0.055049,90795.0,90794.0,0.27359481]
[1731777174542,0.055049,90795.0,90794.0,0.01032696]
[1731777175246,0.055049,90795.0,90794.0,0.27372902]
[1731777175644,0.055049,90795.0,90794.0,0.01032696]
[1731777175947,0.055052,90790.0,90789.0,0.26340206]
[1731777176142,0.415852,90790.0,90789.0,0.01032693]
[1731777177856,0.415852,90790.0,90789.0,0.06537993]
[1731777178253,0.415852,90790.0,90789.0,0.01032693]
[1731777178657,0.415852,90790.0,90789.0,0.06537993]
[1731777178856,0.143292,90790.0,90789.0,0.06537993]
[1731777179048,0.143292,90790.0,90789.0,0.4050898]
[1731777179351,0.02628265,90790.0,90789.0,0.92010692]
[1731777179752,0.02628265,90790.0,90789.0,0.92006058]
[1731777180148,0.02628265,90790.0,90789.0,0.92111004]
[1731777180454,0.02628265,90790.0,90789.0,0.51567001]
[1731777181256,0.02628265,90790.0,90789.0,0.51594357]
[1731777181952,0.055051,90793.0,90789.0,0.51594357]
[1731777182153,0.055051,90793.0,90790.0,0.74590495]
[1731777182357,0.055051,90793.0,90791.0,0.74590495]
[1731777182651,0.055051,90793.0,90792.0,0.35074568]
[1731777182852,0.415851,90793.0,90792.0,0.46088814]
[1731777183154,0.415851,90793.0,90792.0,0.85604741]
[1731777183557,0.3608,90793.0,90792.0,0.46088814]
[1731777183949,0.3608,90793.0,90792.0,0.86620246]
[1731777184157,0.04343793,90797.0,90795.0,0.055049]
[1731777184363,0.44960001,90799.0,90797.0,0.055048]
[1731777184552,0.08880001,90799.0,90798.0,0.35074568]
[1731777184860,0.08824,90799.0,90798.0,0.46088269]